bitfinex-derivatives/quotes_ETHF0:USTF0_20251203
["timestamp","ask_amount","ask_price","bid_price","bid_amount"]
[1764772904587,0.00026307,3116.5,3116.0,3.18080672]
[1764772904787,3.08675204,3118.5,3116.4,3.2078]
[1764772905088,3.2078,3118.5,3117.5,3.2078]
[1764772905290,44.0078,3118.9,3117.6,3.2078]
[1764772905587,3.2078,3120.0,3118.5,3.2078]
[1764772905786,0.00372414,3118.9,3118.5,3.2078]
[1764772906086,0.00480877,3119.6,3118.5,9.2078]
[1764772906286,0.00480877,3119.6,3119.0,3.2078]
[1764772906590,0.00480877,3119.6,3119.1,3.2078]
[1764772906789,0.00480877,3119.6,3119.0,3.2078]
[1764772906986,3.2078,3120.1,3119.5,3.2078]
[1764772907184,3.2078,3119.9,3118.9,3.2078]
[1764772907479,3.2078,3121.2,3119.6,4.11539273]
[1764772907676,3.2078,3122.9,3120.9,3.2078]
[1764772907881,0.00480877,3122.2,3121.0,3.2078]
[1764772908078,3.2078,3123.8,3121.9,3.2078]
[1764772908392,0.00318519,3123.8,3122.7,3.2078]
[1764772908587,0.00318519,3123.8,3122.3,3.2078]
[1764772908790,3.2078,3123.0,3121.9,3.21157055]
[1764772908983,3.2078,3123.5,3121.9,3.21157055]
[1764772909188,0.00480877,3122.8,3122.0,3.2078]
[1764772909584,0.00480877,3122.8,3121.9,0.00377055]
[1764772909785,3.08675204,3122.5,3121.6,3.08009656]
[1764772909989,3.2078,3122.4,3122.0,3.2078]
[1764772910285,0.00480877,3122.8,3122.0,3.2078]
[1764772910481,0.00480877,3122.8,3122.6,3.2078]
[1764772910693,0.00480877,3122.8,3121.6,3.2078]
[1764772910891,0.04624929,3122.2,3121.6,3.2078]
[1764772911087,0.04624929,3122.2,3121.7,3.2078]
[1764772911284,0.16015,3121.4,3121.3,3.2078]
[1764772911585,3.2078,3121.8,3120.4,3.2078]
[1764772911788,3.2078,3121.8,3120.8,3.2078]
[1764772912093,3.2078,3121.5,3121.0,0.00480877]
[1764772912298,3.2078,3121.1,3119.5,3.2078]
[1764772912482,3.2078,3121.1,3117.4,1.74508185]
[1764772912483,3.2078,3120.7,3119.1,3.2078]
[1764772912683,3.2078,3120.7,3119.3,4.13458097]
[1764772912988,3.2078,3120.7,3118.7,3.2078]
[1764772912989,3.08675204,3119.6,3118.7,3.2078]
[1764772913189,3.2078,3119.2,3117.8,3.2078]
[1764772913391,0.00480877,3118.8,3118.6,3.2078]
[1764772913591,0.00480877,3118.8,3118.2,0.00480877]
[1764772913985,3.08675204,3118.5,3118.2,0.00480877]
[1764772914181,0.00480877,3118.8,3118.3,3.2078]
[1764772914400,0.00480877,3118.8,3118.2,0.00480877]
[1764772914401,0.1603,3118.4,3118.2,0.00480877]
[1764772914589,0.31658083,3118.3,3118.2,0.00480877]
[1764772914790,0.16033,3117.9,3117.1,3.2078]
[1764772914989,3.08675204,3117.5,3117.1,3.2078]
[1764772915198,0.31658083,3117.4,3117.1,3.2078]
[1764772915499,6.0,3117.5,3117.1,3.2078]
[1764772915695,3.56367973,3117.4,3116.2,3.2078]
[1764772915897,3.08675204,3116.8,3115.7,3.2078]
[1764772916094,3.2078,3116.4,3115.7,3.2078]
[1764772916396,3.08675204,3117.5,3116.1,3.16372023]
[1764772916696,3.08675204,3117.5,3117.4,3.2078]
[1764772916697,0.00319407,3117.5,3117.4,3.2078]
[1764772916891,3.08675204,3119.0,3117.4,3.2078]
[1764772916892,0.31570809,3118.9,3117.4,3.2078]
[1764772917087,0.16027,3119.1,3116.1,0.00321672]
[1764772917088,40.8,3118.8,3118.4,3.2078]
[1764772917298,0.00480877,3118.5,3118.0,3.2078]
[1764772917493,0.00480877,3118.5,3117.6,3.2078]
[1764772917790,0.00480877,3118.5,3115.2,0.82612093]
[1764772917791,40.8,3118.4,3115.4,0.82612093]
[1764772917994,40.8,3118.4,3113.4,5.69713332]
[1764772917995,3.2078,3116.9,3116.0,3.2078]
[1764772918193,3.2078,3116.5,3115.5,7.40186293]
[1764772918395,0.00480877,3116.8,3115.3,3.2078]
[1764772918594,0.00480877,3116.8,3115.8,3.2078]
[1764772918795,0.00480877,3116.8,3116.3,3.2078]
[1764772918996,0.00480877,3116.8,3115.9,3.2078]
[1764772919294,3.2078,3117.4,3116.4,3.2078]
[1764772919500,3.2078,3118.2,3117.0,3.2078]
[1764772919689,3.2078,3117.8,3117.0,3.2078]
[1764772919891,3.2078,3118.2,3117.0,3.2078]
[1764772920198,3.2078,3118.2,3117.4,3.2078]
[1764772920498,3.2078,3118.0,3117.5,4.13979789]
[1764772920701,0.00480877,3118.1,3117.5,4.13979789]
[1764772920997,3.2078,3118.5,3117.8,4.2508]
[1764772921203,0.0152,3119.1,3117.8,4.2508]
[1764772921389,3.2078,3119.3,3118.4,3.2078]
[1764772921701,3.2078,3122.5,3119.8,3.2078]
[1764772921903,3.2078,3122.5,3121.4,3.16372023]
[1764772921904,3.21067524,3122.5,3121.4,3.16372023]
[1764772922192,3.2078,3123.7,3122.4,3.2078]
[1764772922398,3.2078,3125.7,3123.6,3.2078]
[1764772922602,3.2078,3125.7,3124.6,3.2078]
[1764772922894,3.2078,3124.9,3123.7,4.07614152]
[1764772923088,0.00365207,3124.9,3123.9,3.2078]
[1764772923288,0.00365207,3124.9,3124.0,0.00480099]
[1764772923592,0.00365207,3124.9,3123.0,3.2078]
[1764772923593,3.2078,3124.2,3123.0,3.2078]
[1764772923899,3.2078,3124.1,3122.6,3.2078]
[1764772924091,3.2078,3122.7,3121.7,3.2078]
[1764772924292,40.8,3124.0,3121.7,3.2078]
[1764772924293,3.2078,3123.4,3121.7,3.2078]
[1764772924488,3.2078,3122.4,3122.2,0.00480099]
[1764772924697,3.08675204,3122.8,3121.3,3.2078]
[1764772924698,3.2078,3122.8,3121.3,3.2078]
[1764772924894,3.2078,3122.8,3120.9,3.2078]
[1764772924895,3.2078,3121.9,3120.9,3.2078]
[1764772925098,3.2078,3121.4,3120.3,3.2078]
[1764772925493,3.2078,3122.2,3121.3,3.2078]
[1764772925796,3.2078,3123.3,3121.6,3.2078]
[1764772925999,3.2078,3122.7,3121.6,3.2078]
[1764772926293,0.00358991,3123.4,3122.4,3.2078]
[1764772926496,0.00358991,3123.4,3121.8,0.16013]
[1764772926497,0.00358991,3123.4,3123.2,3.2078]
[1764772926699,0.00358991,3123.4,3123.0,0.00480099]
[1764772926994,0.00358991,3123.4,3123.2,3.2078]
[1764772927200,0.0440229,3123.3,3123.2,3.2078]
[1764772927401,0.0440229,3123.3,3123.0,0.00480099]
[1764772928297,3.2078,3125.0,3123.2,3.2078]
[1764772928504,0.15986,3127.1,3124.6,3.2078]
[1764772928694,3.2078,3126.8,3125.6,3.2078]
[1764772928896,0.31109829,3126.7,3125.3,3.24670204]
[1764772929095,3.2078,3128.6,3126.6,3.2078]
[1764772929297,0.00398068,3128.6,3127.9,3.2078]
[1764772929503,0.00480099,3127.9,3127.4,3.2078]
[1764772929798,3.2078,3127.6,3127.3,0.00480099]
[1764772930197,3.2078,3127.6,3126.6,0.0039978]
[1764772930393,3.2078,3127.0,3124.5,3.2078]
[1764772930597,3.2078,3125.8,3125.1,3.2078]
[1764772930801,3.2078,3126.3,3124.7,3.2078]
[1764772930994,3.2078,3126.0,3124.3,3.2078]
[1764772931301,4.6488,3127.4,3124.8,0.00480099]
[1764772931496,3.2078,3126.7,3124.8,0.00226333]
[1764772931697,3.2078,3126.2,3124.8,3.21006333]
[1764772931907,3.2078,3126.2,3124.8,0.00226333]
[1764772932095,3.2078,3125.7,3124.8,0.00226333]
[1764772932300,3.2078,3126.4,3125.0,3.2078]
[1764772932497,0.00480099,3125.6,3125.0,3.2078]
[1764772932805,0.00480099,3125.6,3125.1,4.18856411]
[1764772933002,0.00480099,3125.6,3125.0,3.2078]
[1764772933600,0.00309758,3127.4,3125.5,7.5707]
[1764772933799,0.00309758,3127.4,3127.2,3.2078]
[1764772934002,0.00309758,3127.4,3127.2,3.21065044]
[1764772934207,0.00309758,3127.4,3127.2,0.00285044]
[1764772934599,0.00309758,3127.4,3127.2,3.21065044]
[1764772934997,3.2078,3127.3,3126.2,3.2078]
[1764772935194,3.2078,3126.5,3124.2,3.2078]
[1764772935403,3.2078,3125.7,3124.2,3.2078]
[1764772935603,3.2078,3126.4,3124.6,3.2078]
[1764772935796,0.00309758,3127.4,3123.8,3.2078]
[1764772935797,3.08675204,3125.5,3123.8,3.2078]
[1764772936002,3.08675204,3125.5,3123.0,3.2078]
[1764772936003,0.15998,3124.9,3123.0,3.2078]
[1764772936202,3.3678,3124.5,3123.0,3.2078]
[1764772936405,3.2078,3124.0,3122.2,3.2078]
[1764772936700,3.2078,3123.5,3122.6,3.2078]
[1764772936912,11.526,3125.3,3121.6,3.2078]
[1764772936913,3.2078,3122.8,3121.6,3.2078]
[1764772937106,3.2078,3122.8,3121.9,0.00480099]
[1764772937107,3.21097104,3122.8,3121.9,0.00480099]
[1764772937306,0.00480099,3122.5,3121.9,0.00480099]
[1764772937605,0.00480099,3122.5,3121.2,3.2078]
[1764772937606,3.2078,3122.2,3121.2,3.2078]
[1764772937801,0.00480099,3122.5,3121.2,3.2078]
[1764772938103,0.00480099,3122.5,3122.2,3.2078]
[1764772938305,0.16001,3124.2,3122.2,3.2078]
[1764772938306,3.2078,3124.5,3122.2,3.2078]
[1764772938511,0.15991,3126.1,3123.7,3.2078]
[1764772938512,3.2078,3124.8,3123.7,3.2078]
[1764772938711,3.2078,3126.8,3124.7,3.2078]
[1764772939004,4.6488,3129.3,3125.5,3.2078]
[1764772939005,3.2078,3126.4,3125.5,3.2078]
[1764772939216,3.2078,3126.4,3125.5,3.2119566]
[1764772939217,3.21095387,3126.4,3125.5,3.2119566]
[1764772939402,0.00480099,3126.3,3125.6,0.00480099]
[1764772939802,0.00480099,3126.3,3125.8,3.2078]
[1764772940109,0.00480099,3126.3,3126.2,3.2078]
[1764772940304,0.00480099,3126.3,3125.8,3.2078]
[1764772940505,0.00480099,3126.3,3125.6,0.00480099]
[1764772940701,0.00480099,3126.3,3126.2,3.2078]
[1764772940900,0.00315387,3126.4,3126.2,3.2078]
[1764772941210,3.2078,3127.3,3126.2,3.2078]
[1764772941408,3.2078,3127.8,3126.9,3.2078]
[1764772941604,3.2078,3128.3,3127.3,3.2078]
[1764772942105,0.01193413,3127.8,3127.5,0.00480099]
[1764772942310,0.02386826,3127.7,3127.5,0.00480099]
[1764772942497,0.00480099,3128.1,3127.5,0.00480099]
[1764772942705,1e-08,3128.1,3127.9,3.2078]
[1764772943007,3.2078,3131.9,3129.3,4.3629]
[1764772943305,3.2078,3133.4,3131.5,3.2078]
[1764772943506,3.2078,3133.4,3132.6,3.2078]
[1764772943813,3.21137229,3133.4,3132.6,0.00334449]
[1764772944109,0.25,3135.0,3133.2,7.5707]
[1764772944303,3.2078,3136.1,3134.9,3.2078]
[1764772944504,3.2078,3135.7,3134.4,3.2078]
[1764772944807,3.2078,3135.7,3133.2,4.3629]
[1764772944808,3.2078,3136.1,3134.7,3.2078]
[1764772944999,0.00404241,3136.1,3134.7,0.00298157]
[1764772945202,0.00404241,3136.1,3135.8,3.2078]
[1764772945399,0.09064158,3137.3,3136.0,3.08675204]
[1764772945611,3.2078,3139.6,3137.2,3.2078]
[1764772945802,3.2078,3139.6,3136.6,0.15937]
[1764772945803,3.2078,3139.6,3138.1,3.2078]
[1764772946199,3.2078,3139.6,3138.2,7.76188092]
[1764772946200,0.00478491,3138.7,3138.2,7.76188092]
[1764772946400,3.21574501,3138.7,3138.2,4.22563678]
[1764772946605,3.21574501,3138.7,3138.5,0.00478491]
[1764772946606,6.00794501,3138.7,3138.5,0.00478491]
[1764772946810,3.2078,3138.6,3136.8,3.2078]
[1764772947009,3.2078,3136.9,3134.7,3.2078]
[1764772947311,3.2078,3136.5,3135.1,3.2078]
[1764772947506,3.2078,3136.9,3135.9,3.2078]
[1764772947709,0.00310171,3136.9,3136.6,3.2078]
[1764772947909,3.08675204,3136.8,3135.9,0.00254249]
[1764772948108,3.2078,3136.2,3135.0,3.2078]
[1764772948313,3.2078,3136.4,3134.5,3.2078]
[1764772948510,3.2078,3136.4,3132.9,0.15956]
[1764772948511,3.2078,3136.4,3135.0,3.2078]
[1764772948712,3.2078,3136.7,3135.0,3.2078]
[1764772948910,3.08675204,3136.0,3133.4,3.2078]
[1764772949109,3.08675204,3134.6,3133.4,0.00341771]
[1764772949306,3.2078,3133.9,3133.4,0.00341771]
[1764772949608,0.00403766,3134.6,3133.4,0.00341771]
[1764772949609,0.01229123,3133.7,3133.4,0.00341771]
[1764772949815,0.00403766,3134.6,3133.5,4.12312325]
[1764772950118,3.2078,3136.0,3134.5,3.2078]
[1764772950506,3.2078,3136.0,3133.4,0.00341771]
[1764772950507,3.2078,3136.4,3135.0,3.2078]
[1764772950711,0.25860556,3137.5,3136.3,3.2078]
[1764772950712,3.2078,3137.5,3136.3,3.2078]
[1764772951010,0.00314123,3137.5,3136.6,3.2078]
[1764772951211,0.00314123,3137.5,3136.7,3.2078]
[1764772951420,0.0155461,3137.1,3136.7,4.14456367]
[1764772951722,0.00314123,3137.5,3137.0,3.2078]
[1764772951919,0.00314123,3137.5,3137.4,3.2078]
[1764772952213,3.2078,3139.3,3137.4,3.2078]
[1764772952416,3.2078,3137.6,3136.3,0.0032328]
[1764772952616,4.14154778,3139.2,3137.5,3.2078]
[1764772952815,4.14154778,3139.6,3137.5,3.2078]
[1764772952816,3.2078,3139.8,3139.0,3.2078]
[1764772953025,3.2078,3140.2,3138.6,3.2078]
[1764772953219,0.294777,3140.0,3139.3,3.2078]
[1764772953422,0.00478491,3139.7,3138.7,4.12644527]
[1764772953613,0.00478491,3139.7,3139.4,3.59325521]
[1764772953614,2.53038488,3139.7,3139.4,3.59325521]
[1764772953814,2.53038488,3139.7,3138.6,0.00339786]
[1764772953815,3.2078,3139.5,3138.6,0.00339786]
[1764772954022,44.0078,3139.4,3138.6,0.00339786]
[1764772954222,0.00478491,3139.7,3138.8,3.2078]
[1764772954518,0.00478491,3139.7,3139.0,3.2078]
[1764772954822,2.52559997,3141.8,3139.6,3.2078]
[1764772955021,2.52559997,3141.8,3138.7,7.69114421]
[1764772955022,3.2078,3141.7,3140.0,3.2078]
[1764772955320,3.2078,3140.1,3138.6,3.21119786]
[1764772955624,3.2078,3140.3,3139.4,3.2078]
[1764772955814,3.2078,3139.9,3139.5,0.00477715]
[1764772956017,3.2078,3139.9,3138.6,0.00339786]
[1764772956520,3.2078,3141.6,3139.8,3.2078]
[1764772956722,21.3368,3143.7,3138.7,7.74464934]
[1764772956723,3.2078,3142.7,3141.2,3.2078]
[1764772956926,3.2078,3142.0,3140.6,3.2078]
[1764772957322,3.2078,3141.5,3140.1,4.1936816]
[1764772957519,3.2078,3141.0,3140.5,0.00477715]
[1764772957725,0.00477715,3141.1,3140.5,0.00477715]
[1764772957922,0.00298337,3141.5,3140.8,3.2078]
[1764772958117,0.00298337,3141.5,3140.6,3.39972209]
[1764772958321,0.00298337,3141.5,3140.5,0.00477715]
[1764772958717,0.00298337,3141.5,3140.9,3.2078]
[1764772959014,0.00298337,3141.5,3140.5,0.00477715]
[1764772959216,0.01722012,3141.0,3140.9,3.2078]
[1764772959419,0.01722012,3141.0,3140.6,4.17924203]
[1764772959621,0.01722012,3141.0,3140.7,3.2078]
[1764772959927,0.01356106,3140.9,3140.6,4.17924203]
[1764772960222,0.00298337,3141.5,3140.8,6.57237221]
[1764772960420,0.00298337,3141.5,3140.6,3.07962271]
[1764772960622,0.01442895,3141.1,3140.5,0.00477715]
[1764772960930,0.01442895,3141.1,3141.0,3.2078]
[1764772961126,3.2078,3143.1,3141.0,3.2078]
[1764772961332,0.25,3145.0,3143.0,3.2078]
[1764772961517,2.52559997,3144.5,3143.1,3.2078]
[1764772961821,2.52559997,3144.5,3141.7,0.00477715]
[1764772961822,3.2078,3143.8,3141.7,3.2078]
[1764772962026,3.2078,3142.2,3140.0,3.2078]
[1764772962225,3.2078,3142.1,3140.0,5.73661902]
[1764772962426,3.2078,3141.7,3140.8,0.00477715]
[1764772962617,0.1591,3142.1,3140.0,3.21101905]
[1764772962618,3.2078,3140.9,3140.0,0.00321905]
[1764772962819,5.73339997,3140.3,3137.2,3.2078]
[1764772963019,0.15918,3140.4,3137.4,3.2078]
[1764772963020,3.2078,3139.0,3137.4,3.2078]
[1764772963234,3.2078,3138.6,3137.5,5.73339997]
[1764772963426,3.2078,3141.0,3138.5,3.2078]
[1764772963618,3.2078,3140.4,3138.5,3.2078]
[1764772963922,0.00477715,3140.1,3139.6,3.2078]
[1764772964128,0.00286887,3140.4,3140.0,3.2078]
[1764772964334,0.00286887,3140.4,3139.7,4.05300597]
[1764772964540,0.00286887,3140.4,3139.2,3.2078]
[1764772964541,6.00286887,3140.4,3139.2,3.2078]
[1764772964721,3.2078,3139.3,3138.5,0.00325271]
[1764772964923,3.2078,3138.6,3136.4,2.52559997]
[1764772965125,3.2078,3137.8,3136.2,5.73339997]
[1764772965425,3.2078,3137.8,3136.0,3.4158]
[1764772965426,3.21257715,3137.8,3137.2,0.00477715]
[1764772965627,3.21257715,3137.8,3136.0,3.4158]
[1764772965628,3.2078,3137.4,3135.0,3.2078]
[1764772965828,3.2078,3137.2,3135.8,3.2078]
[1764772966022,3.2078,3136.4,3135.0,0.00391746]
[1764772966428,3.21037997,3137.4,3135.8,3.2078]
[1764772966627,5.73339997,3136.8,3135.0,0.00391746]
[1764772966824,3.2078,3135.1,3134.1,3.2078]
[1764772967127,3.2078,3135.2,3134.1,3.2078]
[1764772967434,0.00478506,3135.0,3134.3,0.00478506]
[1764772967634,3.21258506,3135.0,3134.3,0.00478506]
[1764772967831,3.2156376,3135.0,3134.3,0.00860109]
[1764772968042,3.2078,3134.5,3134.4,2.51237391]
[1764772968226,3.2078,3134.5,3134.3,0.00860109]
[1764772968422,6.0,3134.4,3132.9,3.2078]
[1764772968621,3.2078,3133.0,3132.0,3.2078]
[1764772968826,3.2078,3134.5,3132.6,3.2078]
[1764772969124,0.00305254,3135.0,3134.1,3.2078]
[1764772969324,3.2078,3134.5,3134.1,0.00321111]
[1764772969526,0.00478506,3134.9,3134.2,7.31297338]
[1764772969828,3.2078,3134.8,3134.2,0.00478506]
[1764772970030,3.2078,3136.0,3134.3,4.08749183]
[1764772970235,3.2078,3136.9,3135.6,3.2078]
[1764772970534,0.01649584,3136.3,3135.7,4.08749183]
[1764772970724,0.01649584,3136.3,3135.6,3.2078]
[1764772970928,2.52559997,3139.0,3136.1,3.2078]
[1764772971128,2.52559997,3139.0,3137.2,0.00478506]
[1764772971129,3.2078,3137.6,3137.2,0.00478506]
[1764772971436,0.00259403,3139.0,3137.5,3.2078]
[1764772971632,0.00259403,3139.0,3137.2,0.00883005]
[1764772971633,5.73339997,3138.9,3137.2,0.00883005]
[1764772971844,3.2078,3138.9,3137.4,3.2078]
[1764772972132,3.2078,3138.9,3137.2,0.00883005]
[1764772972133,3.2078,3139.6,3138.8,3.2078]
[1764772972326,0.00476797,3139.5,3139.3,3.2078]
[1764772972525,4.502,3141.6,3139.3,3.2078]
[1764772972526,3.2078,3140.9,3140.0,0.1592]
[1764772972723,3.2078,3143.2,3140.8,3.2078]
[1764772972923,0.0034583,3143.2,3141.9,3.2078]
[1764772973135,0.25,3145.0,3143.1,3.2078]
[1764772973336,3.2078,3146.5,3143.9,3.2078]
[1764772973637,3.2078,3146.3,3144.7,3.2078]
[1764772973841,4.29078743,3147.5,3145.5,3.2078]
[1764772973842,3.2078,3147.3,3145.5,3.2078]
[1764772974137,3.2078,3146.8,3145.5,0.00335829]
[1764772974638,3.2078,3146.8,3145.9,3.2078]
[1764772974840,3.2078,3146.8,3145.5,0.00335829]
[1764772975133,3.2078,3146.4,3144.9,0.00476811]
[1764772975335,14.6798,3146.3,3144.0,3.2078]
[1764772975544,14.6798,3146.3,3142.4,2.52559997]
[1764772975545,3.2078,3145.1,3143.6,3.2078]
[1764772975732,11.472,3146.3,3143.6,3.2078]
[1764772975733,3.2078,3144.7,3143.6,3.2078]
[1764772975931,3.2078,3144.6,3143.6,3.2078]
[1764772976130,4.502,3146.4,3144.0,3.2078]
[1764772976131,40.8,3145.6,3144.0,3.2078]
[1764772976333,0.00276462,3144.6,3144.5,0.00476811]
[1764772976838,0.00473926,3145.1,3144.5,13.28961617]
[1764772977048,0.00473926,3145.1,3145.0,3.2078]
[1764772977244,3.2078,3147.4,3145.0,3.2078]
[1764772977541,3.2078,3146.0,3145.0,4.10729858]
[1764772977740,3.21006291,3146.0,3144.7,3.2078]
[1764772977936,3.2078,3145.5,3144.3,3.2078]
[1764772978144,3.2078,3145.5,3144.6,3.2078]
[1764772978337,3.2078,3144.9,3143.7,7.2889853]
[1764772978543,3.2078,3144.3,3142.4,3.2078]
[1764772978837,3.2078,3143.9,3142.4,3.2078]
[1764772979035,3.2078,3144.2,3142.7,3.2078]
[1764772979236,3.2078,3144.7,3143.7,3.2078]
[1764772979443,0.00226291,3146.0,3144.6,3.2078]
[1764772979638,0.00226291,3146.0,3145.0,0.00476811]
[1764772979846,0.00476811,3145.6,3145.0,0.00476811]
[1764772980142,0.01575673,3145.3,3145.0,0.00476811]
[1764772980336,0.01575673,3145.3,3145.0,6.00476811]
[1764772980540,0.00226291,3146.0,3145.2,3.2078]
[1764772980737,0.00226291,3146.0,3145.6,3.2078]
[1764772980938,0.00226291,3146.0,3145.3,4.05517563]
[1764772981134,0.00226291,3146.0,3145.4,3.2078]
[1764772981347,3.2078,3146.7,3145.4,6.5906955]
[1764772981534,3.2078,3147.3,3145.7,3.2078]
[1764772981735,3.2078,3145.3,3143.3,3.2078]
[1764772981936,3.2078,3143.4,3141.5,2.52559997]
[1764772982241,3.2078,3143.4,3142.3,0.00476811]
[1764772982640,3.2078,3143.0,3142.3,0.00476811]
[1764772982942,3.36688,3142.4,3140.3,3.2078]
[1764772983143,3.2078,3140.7,3139.9,3.2078]
[1764772983439,3.2078,3141.3,3140.4,7.38052484]
[1764772983645,3.2078,3141.3,3139.2,0.81733966]
[1764772983646,3.2078,3140.8,3139.9,3.2078]
[1764772983842,0.00229324,3140.8,3140.3,3.2078]
[1764772984043,0.00229324,3140.8,3139.9,0.00403701]
[1764772984044,3.2078,3141.6,3140.5,4.08094846]
[1764772984245,3.2078,3140.8,3140.0,0.0047766]
[1764772984443,11.46,3142.3,3140.6,3.2078]
[1764772984640,11.46,3142.3,3140.0,3.2078]
[1764772984641,3.2078,3141.2,3140.0,3.2078]
[1764772984846,11.46,3142.3,3139.9,0.00403701]
[1764772984847,3.2078,3140.3,3139.9,0.00403701]
[1764772985043,52.26,3140.2,3139.8,0.0047766]
[1764772985247,52.26,3140.2,3137.2,4.6449]
[1764772985248,2.52559997,3139.1,3137.2,3.2078]
[1764772985444,3.2078,3137.7,3136.7,3.2078]
[1764772985641,2.52559997,3137.1,3136.2,3.2078]
[1764772985944,3.2078,3138.0,3136.4,3.2078]
[1764772986148,3.2078,3138.0,3136.8,3.2078]
[1764772986149,3.2078,3137.5,3136.8,3.2078]
[1764772986334,40.8,3137.4,3136.9,0.0047766]
[1764772986742,3.2078,3137.0,3136.9,0.0047766]
[1764772986943,3.2078,3137.0,3136.9,1e-08]
[1764772987138,0.0047766,3137.5,3136.9,1e-08]
[1764772987344,0.0047766,3137.5,3137.1,3.2078]
[1764772987541,3.2078,3138.6,3137.1,3.2078]
[1764772987542,3.2078,3139.1,3137.1,3.2078]
[1764772987742,3.2078,3138.3,3137.5,3.2078]
[1764772988145,3.2078,3138.8,3137.9,3.2078]
[1764772988344,3.2078,3139.2,3138.1,3.2078]
[1764772988538,0.0047766,3139.0,3138.1,3.2078]
[1764772988745,0.00858965,3139.0,3138.1,3.2078]
[1764772989042,0.00858965,3139.0,3136.4,0.00315622]
[1764772989043,0.00858965,3139.0,3138.5,3.2078]
[1764772989245,3.21638965,3139.0,3138.1,3.2078]
[1764772989453,3.2078,3138.6,3138.2,0.0047766]
[1764772989646,40.8,3138.5,3138.2,0.0047766]
[1764772989950,0.00858965,3139.0,3138.3,3.2078]
[1764772990246,3.2078,3141.0,3138.9,3.2078]
[1764772990445,3.2078,3141.4,3140.3,3.2078]
[1764772990648,3.2078,3141.0,3139.6,3.2078]
[1764772990946,2.52559997,3141.3,3139.7,3.2078]
[1764772990947,3.2078,3140.6,3139.7,3.2078]
[1764772991146,0.0047766,3140.5,3139.8,0.0047766]
[1764772991357,14.6748,3142.5,3140.4,3.2078]
[1764772991543,3.2078,3143.5,3142.1,3.2078]
[1764772991849,3.2078,3143.9,3142.9,3.2078]
[1764772992152,3.2078,3144.0,3143.3,3.2078]
[1764772992454,0.00345887,3144.0,3143.8,3.2078]
[1764772992651,0.00345887,3144.0,3143.3,0.00769135]
[1764772993041,6.00345887,3144.0,3143.3,0.0047766]
[1764772993243,0.15904,3143.2,3140.7,3.2078]
[1764772993446,3.2078,3142.5,3141.2,3.2078]
[1764772993951,13.99159997,3143.6,3142.0,3.2078]
[1764772994252,0.0047766,3143.1,3142.5,0.0047766]
[1764772994455,0.00345887,3144.0,3143.3,3.2078]
[1764772994750,0.00345887,3144.0,3143.7,3.2078]
[1764772994947,11.466,3145.0,3143.7,3.2078]
[1764772995142,11.466,3145.0,3144.1,3.2078]
[1764772995345,11.466,3145.0,3142.5,0.0047766]
[1764772995346,11.466,3145.0,3134.0,13.35421089]
[1764772995347,0.15924,3139.3,3134.0,13.35421089]
[1764772995546,0.15943,3135.7,3135.4,3.2078]
[1764772995846,4.11969367,3135.6,3134.2,0.8664752]
[1764772996047,1.14702112,3135.5,3135.2,0.0047766]
[1764772996246,1.14702112,3135.4,3135.3,0.35487627]
[1764772996457,2.85053803,3135.2,3133.6,2.52559997]
[1764772996757,1.66479332,3133.9,3133.8,2.52559997]
[1764772996946,3.2078,3136.2,3134.9,4.3323]
[1764772997252,3.2078,3135.6,3134.9,4.3323]
[1764772997558,0.00478484,3135.9,3135.2,0.00478484]
[1764772998054,3.2078,3136.9,3135.8,3.2078]
[1764772998249,3.2078,3136.7,3135.4,3.2078]
[1764772998450,3.2078,3134.6,3131.1,3.2078]
[1764772998751,3.2078,3131.4,3130.8,3.2078]
[1764772998946,3.2078,3131.4,3130.1,3.2078]
[1764772999149,3.2078,3131.4,3129.6,2.52559997]
[1764772999150,3.2078,3131.2,3129.7,3.2078]
[1764772999548,3.2078,3130.8,3129.7,3.2078]
[1764772999845,0.00478484,3130.8,3130.1,3.21258484]
[1764773000051,3.2078,3130.7,3130.1,0.00478484]
[1764773000343,3.2078,3130.7,3130.1,6.0]
[1764773000547,3.2078,3130.6,3130.0,3.2078]
[1764773000753,0.00478484,3130.8,3130.5,3.2078]
[1764773000946,0.00478484,3130.8,3130.1,4.09240882]
[1764773001146,3.2078,3132.5,3130.7,3.2078]
[1764773001350,3.2078,3131.6,3130.7,3.2078]
[1764773001559,3.2078,3131.7,3130.8,7.41706057]
[1764773001751,3.2078,3132.6,3130.9,3.2078]
[1764773002054,0.00342661,3132.6,3132.3,3.2078]
[1764773002252,0.00342661,3132.6,3132.3,3.21145621]
[1764773002461,0.00342661,3132.6,3132.3,9.21145621]
[1764773002659,0.00342661,3132.6,3132.3,0.00365621]
[1764773002954,0.00342661,3132.6,3132.5,3.2078]
[1764773003554,0.00478484,3132.8,3132.5,9.2078]
[1764773003750,0.00478484,3132.8,3132.5,3.2078]
[1764773003959,0.00478484,3132.8,3132.3,0.00365621]
[1764773004354,0.00478484,3132.8,3132.5,3.2078]
[1764773004551,0.00478484,3132.8,3132.3,0.00365621]
[1764773004552,0.007763,3132.8,3132.3,0.00365621]
[1764773004750,0.007763,3132.8,3132.6,3.2078]
[1764773004952,0.007763,3132.8,3132.4,4.17403471]
[1764773005167,3.2078,3133.7,3132.7,3.2078]
[1764773005455,3.2153147,3133.7,3132.3,3.21145621]
[1764773005660,3.2078,3133.3,3132.3,3.21145621]
[1764773005845,0.0075147,3133.7,3132.7,3.2078]
[1764773006048,0.0075147,3133.7,3132.4,4.17403471]
[1764773006049,3.2078,3133.4,3132.4,4.17403471]
[1764773006256,3.2078,3132.9,3132.3,0.00365621]
[1764773006659,0.0075147,3132.8,3132.3,0.00365621]
[1764773006960,3.2078,3133.4,3132.7,3.2078]
[1764773007260,0.00251543,3133.7,3133.1,3.2078]
[1764773007462,3.2078,3133.5,3133.1,0.00478484]
[1764773007850,0.00272986,3133.4,3132.3,0.00365621]
[1764773008052,3.2078,3133.3,3132.5,3.2078]
[1764773008248,0.00478484,3133.6,3132.5,3.2078]
[1764773008452,3.2078,3134.5,3133.4,3.2078]